fUSD/lending_fUSD_20251217
["ID","MTS","AMOUNT","RATE_DAILY","PERIOD"]
[398917476,1765991469235,-500.0,0.00038989,120]
[398917477,1765991469245,-500.0,0.00038989,120]
[398917478,1765991469255,-151.0,0.00038997,14]
[398917479,1765991469264,-500.0,0.00038998,120]
[398917480,1765991469273,-1408.53,0.00038999,120]
[398917481,1765991469283,-1408.53,0.00038999,120]
[398917482,1765991469294,-1408.53,0.00038999,120]
[398917483,1765991469303,-1408.53,0.00038999,120]
[398917484,1765991469312,-1408.53,0.00038999,120]
[398917485,1765991469322,-1408.53,0.00038999,120]
[398917486,1765991469331,-1408.53,0.00038999,120]
[398917487,1765991469340,-1408.53,0.00038999,120]
[398917488,1765991469349,-1408.53,0.00038999,120]
[398917489,1765991469358,-1408.53,0.00038999,120]
[398917490,1765991469369,-1408.53,0.00038999,120]
[398917491,1765991469379,-1408.53,0.00038999,120]
[398917492,1765991469387,-1408.57319516,0.00038999,120]
[398917493,1765991469396,-500.0,0.00038999,120]
[398917494,1765991469407,-500.0,0.00038999,120]
[398917495,1765991469416,-500.0,0.00038999,120]
[398917496,1765991469426,-500.0,0.00038999,120]
[398917497,1765991469436,-260.92,0.00038999,120]
[398917498,1765991469446,-151.0,0.00038999,120]
[398917499,1765991469457,-151.0,0.00038999,120]
[398917500,1765991469466,-151.0,0.00038999,120]
[398917501,1765991469476,-151.0,0.00038999,120]
[398917502,1765991469486,-151.0,0.00038999,120]
[398917503,1765991469496,-151.0,0.00038999,120]
[398917504,1765991469505,-1533.67248625,0.00039,31]
[398917505,1765991469514,-500.0,0.00039,14]
[398917506,1765991469523,-581500.72921247,0.00039,2]
[398917507,1765991469565,-151.0,0.00018773,2]
[398917508,1765991469575,-887.39988,0.00039,2]
[398917509,1765991469601,-214.72046687,0.00018773,2]
[398917510,1765991469612,-151.0,0.00018773,2]
[398917511,1765991469621,-214.72046687,0.00018773,2]
[398917512,1765991469631,-336976.5349885,0.00039,2]
[398917513,1765991469644,-228677.41880632,0.00039,2]
[398917514,1765991469903,-367.75392,0.00016859,2]
[398917515,1765991469914,-145.23508846,0.00016859,2]
[398917516,1765991469923,-172.67230965,0.000221,2]
[398917517,1765991469933,-172.67230965,0.000263,2]
[398917518,1765991469943,-342.60417,0.00030137,31]
[398917519,1765991469952,-342.60417,0.00030137,31]
[398917520,1765991469962,-172.67230965,0.000305,2]
[398917521,1765991469971,-172.67230965,0.000347,2]
[398917522,1765991469980,-310.56275554,0.000376,31]
[398917605,1765992631428,-516.97,0.00013699,2]
[398917606,1765992631438,-500.0,0.0001414,2]
[398917607,1765992631447,-268.41989871,0.00014152,2]
[398917608,1765992631483,-31.58010129,0.00014152,2]
[398917609,1765992631493,-300.0,0.0001463,2]
[398917610,1765992631502,-300.0,0.0001463,2]
[398917611,1765992631512,-300.0,0.0001463,2]
[398917612,1765992631521,-20213.7134523,0.00015,2]
[398917613,1765992631534,-13692.05,0.0001502,2]
[398917614,1765992631544,-6957.06,0.0001505,2]
[398917615,1765992631553,-250.0,0.00015068,2]
[398917616,1765992631563,-5618.57283763,0.00015087,2]
[398917617,1765992631573,-300.0,0.00015186,2]
[398917618,1765992631582,-111179.04318137,0.00015187,2]
[398917619,1765992631596,-10404.19204199,0.00015187,2]
[398917620,1765992631609,-9110.20794272,0.00015187,2]
[398917621,1765992631624,-27269.97956366,0.00015187,2]
[398917623,1765992631658,-49711.9873103,0.00015187,2]
[398917648,1765992637461,-252.88651687,0.00015186,2]
[398917649,1765992637471,-261.64374473,0.00015186,2]
[398917650,1765992637512,-238.35625527,0.00015186,2]
[398917651,1765992637522,-500.0,0.00015186,2]
[398917652,1765992637531,-500.0,0.00015186,2]
[398917653,1765992637541,-551.71568406,0.00015186,2]
[398917654,1765992637552,-500.0,0.00015186,2]
[398917655,1765992637563,-500.0,0.00015186,2]
[398917656,1765992637572,-500.0,0.00015186,2]
[398917657,1765992637583,-265.93101062,0.00015186,2]
[398917658,1765992637594,-495.23190622,0.00015186,2]
[398917659,1765992637605,-500.0,0.00015186,2]
[398917660,1765992637614,-500.0,0.00015186,2]
[398917661,1765992637627,-342.54164445,0.00015186,2]
[398917662,1765992637639,-500.0,0.00015186,2]
[398917663,1765992637649,-500.0,0.00015186,2]
[398917664,1765992637660,-500.0,0.00015186,2]
[398917665,1765992637671,-500.0,0.00015186,2]
[398917666,1765992637681,-500.0,0.00015186,2]
[398917668,1765992637690,-500.0,0.00015186,2]
[398917670,1765992637701,-500.0,0.00015186,2]
[398917671,1765992637713,-500.0,0.00015186,2]
[398917672,1765992637722,-500.0,0.00015186,2]
[398917673,1765992637732,-500.0,0.00015186,2]
[398917675,1765992637742,-500.0,0.00015186,2]
[398917677,1765992637751,-500.0,0.00015186,2]
[398917679,1765992637761,-500.0,0.00015186,2]
[398917681,1765992637770,-500.0,0.00015186,2]
[398917683,1765992637780,-500.0,0.00015186,2]
[398917685,1765992637790,-500.0,0.00015186,2]
[398917687,1765992637800,-248.39885486,0.00015186,2]
[398917689,1765992637809,-500.0,0.00015186,2]
[398917691,1765992637819,-278.70727692,0.00015186,2]
[398917693,1765992637828,-500.0,0.00015186,2]
[398917695,1765992637837,-500.0,0.00015186,2]
[398917697,1765992637846,-67528.97046535,0.00015187,2]
[398917700,1765992637862,-688.30896852,0.00015187,2]
[398917702,1765992637874,-447.66174487,0.00015187,2]
[398917704,1765992637885,-865.42829817,0.00015187,2]
[398917706,1765992637896,-2744.25566807,0.00015187,2]
[398917709,1765992637908,-480049.96481498,0.00015187,2]
[398917710,1765992637919,-2300.0,0.00015187,2]
[398917713,1765992637929,-3406.27,0.00015222,2]
[398917715,1765992637939,-200.0,0.00015231,2]
[398917717,1765992637948,-151.0,0.00015277,2]
[398917719,1765992637958,-263.68804317,0.00015277,2]
[398917721,1765992637968,-420.75,0.00015285,2]
[398917722,1765992637978,-468.97910059,0.00015286,2]
[398917725,1765992637987,-617.05510351,0.00015286,2]
[398917727,1765992637997,-500.0,0.00015286,2]
[398917729,1765992638007,-500.0,0.00015286,2]
[398917731,1765992638016,-500.0,0.00015286,2]
[398917733,1765992638030,-500.0,0.00015286,2]
[398917735,1765992638039,-500.0,0.00015286,2]
[398917737,1765992638048,-500.0,0.00015286,2]
[398917739,1765992638058,-500.0,0.00015286,2]
[398917741,1765992638069,-500.0,0.00015286,2]
[398917743,1765992638079,-500.0,0.00015286,2]
[398917745,1765992638089,-500.0,0.00015286,2]
[398917747,1765992638099,-500.0,0.00015286,2]
[398917750,1765992638109,-228.19281027,0.00015286,2]
[398917752,1765992638119,-500.0,0.00015286,2]
[398917754,1765992638129,-1854.022,0.00015286,2]
[398917756,1765992638138,-500.0,0.00015286,2]
[398917758,1765992638148,-500.0,0.00015286,2]
[398917760,1765992638158,-392.85536899,0.00015286,2]
[398917762,1765992638168,-500.0,0.00015286,2]
[398917764,1765992638178,-5618.57283758,0.00015288,2]
[398917766,1765992638188,-5618.57283758,0.0001549,2]
[398917768,1765992638199,-300.0,0.00015554,2]
[398917770,1765992638209,-420.75,0.00015559,2]
[398917772,1765992638219,-5618.57283758,0.00015691,2]
[398917774,1765992638229,-2227.88016117,0.00015807,2]
[398917776,1765992638239,-420.75,0.00015833,2]
[398917779,1765992638249,-5618.57283758,0.00015893,2]
[398917781,1765992638260,-3437.5222,0.00015951,2]
[398917783,1765992638270,-151.0,0.00015997,2]
[398917785,1765992638281,-4942.32569661,0.00016,2]
[398917787,1765992638291,-136027.59249613,0.00016,4]
[398917789,1765992638301,-500.0,0.0001605,2]
[398917791,1765992638311,-5618.57283758,0.00016094,2]
[398917793,1765992638321,-420.75,0.00016107,2]
[398917795,1765992638331,-500.0,0.00016115,2]
[398917797,1765992638341,-150.99,0.00016116,2]
[398917799,1765992638351,-150.99,0.00016116,2]
[398917801,1765992638361,-999.99,0.00016116,2]
[398917804,1765992638371,-3010.11,0.00016116,2]
[398917806,1765992638381,-64100.83000869,0.000162,5]
[398917808,1765992638391,-5618.57283758,0.00016296,2]
[398917810,1765992638405,-510.0,0.00016309,2]
[398917812,1765992638415,-500.0,0.00016337,2]
[398917814,1765992638426,-499.99999999,0.00016337,2]
[398917817,1765992638436,-500.0,0.00016337,2]
[398917819,1765992638446,-500.0,0.00016337,2]
[398917821,1765992638456,-500.0,0.00016337,2]
[398917823,1765992638467,-500.0,0.00016337,2]
[398917825,1765992638476,-500.0,0.00016337,2]
[398917827,1765992638486,-500.0,0.00016337,2]
[398917829,1765992638496,-500.0,0.00016337,2]
[398917831,1765992638506,-500.0,0.00016337,2]
[398917833,1765992638516,-500.0,0.00016337,2]
[398917835,1765992638525,-500.0,0.00016368,2]
[398917837,1765992638536,-420.7649234,0.00016381,2]
[398917839,1765992638546,-500.0,0.00016437,2]
[398917841,1765992638556,-500.0,0.00016437,2]
[398917843,1765992638566,-500.0,0.00016438,2]
[398917845,1765992638577,-500.0,0.00016438,2]
[398917847,1765992638587,-500.0,0.00016438,2]
[398917849,1765992638597,-500.0,0.00016438,2]
[398917852,1765992638608,-500.0,0.00016438,2]
[398917854,1765992638618,-500.0,0.00016438,2]
[398917855,1765992638630,-500.0,0.00016438,2]
[398917857,1765992638648,-500.0,0.00016438,2]
[398917858,1765992638659,-500.0,0.00016438,2]
[398917859,1765992638670,-500.0,0.00016438,2]
[398917860,1765992638681,-500.0,0.00016438,2]
[398917861,1765992638691,-441.15709896,0.00016438,2]
[398917862,1765992638702,-500.0,0.00016438,2]
[398917863,1765992638714,-8481.47,0.00016438,2]
[398917864,1765992638725,-5618.57283758,0.00016497,2]
[398917865,1765992638736,-230.74,0.00016575,2]
[398917866,1765992638746,-286.34012987,0.00016843,2]
[398917867,1765992638758,-500.0,0.00016921,2]
[398917868,1765992638769,-500.0,0.00016921,2]
[398917869,1765992638780,-639.7,0.00016958,2]
[398917870,1765992638790,-500.0,0.00016973,2]
[398917871,1765992638804,-506.79331904,0.00016973,2]
[398917872,1765992638814,-500.0,0.00016973,2]
[398917873,1765992638824,-216.18014628,0.00016973,2]
[398917874,1765992638834,-500.0,0.00016973,2]
[398917875,1765992638844,-500.0,0.00016973,2]
[398917876,1765992638854,-501.15889228,0.00016973,2]
[398917877,1765992638864,-165.24964768,0.00016973,2]
[398917878,1765992638874,-500.0,0.00016973,2]
[398917879,1765992638885,-500.0,0.00016973,2]
[398917880,1765992638895,-500.0,0.00016973,2]
[398917881,1765992638905,-500.0,0.00016973,2]
[398917882,1765992638916,-502.16839762,0.00016973,2]
[398917883,1765992638926,-500.0,0.00016973,2]
[398917884,1765992638937,-500.0,0.00016973,2]
[398917885,1765992638947,-162.80787779,0.00016973,2]
[398917886,1765992638957,-500.0,0.00016973,2]
[398917887,1765992638968,-202.22387202,0.00016973,2]
[398917888,1765992638982,-160.16120282,0.00016973,2]
[398917889,1765992638993,-150.0,0.00016973,2]
[398917890,1765992639003,-150.0,0.00016973,2]
[398917891,1765992639013,-500.0,0.00016986,2]
[398917892,1765992639024,-28241.72,0.00016986,2]
[398917893,1765992639034,-307.9868851,0.0001699,2]
[398917894,1765992639044,-307.9868851,0.0001699,2]
[398917895,1765992639054,-307.9868851,0.0001699,2]
[398917896,1765992639063,-500.0,0.00016996,2]
[398917897,1765992639074,-151.0,0.00016997,2]
[398917898,1765992639084,-500.0,0.00016999,2]
[398917899,1765992639094,-500.0,0.00016999,2]
[398917900,1765992639103,-500.0,0.00016999,2]
[398917901,1765992639113,-500.0,0.00016999,2]
[398917902,1765992639124,-500.0,0.00016999,2]
[398917903,1765992639134,-500.0,0.00016999,2]
[398917904,1765992639145,-500.0,0.00016999,2]
[398917905,1765992639155,-500.0,0.00016999,2]
[398917906,1765992639165,-500.0,0.00016999,2]
[398917907,1765992639178,-250.0,0.00017,2]
[398917908,1765992639189,-2522692.24464107,0.00017,2]
[398917909,1765992639204,-922.64,0.00017,2]
[398917910,1765992639218,-575.09999824,0.00017,2]
[398917911,1765992639230,-478.8554117,0.00017,2]
[398917918,1765992639540,-102445.17655268,0.00017,2]
[398917919,1765992639551,-910.49,0.00017,2]
[398917920,1765992639564,-4041.65159643,0.00017,2]
[398917921,1765992639804,-927.66,0.00017,2]
[398917922,1765992639816,-270.87957283,0.00017,2]
[398917923,1765992639828,-454.08638572,0.00017,2]
[398917924,1765992639839,-435.735,0.00017,2]
[398917943,1765992642666,-5618.57283758,0.00016699,2]
[398917944,1765992642678,-2733.1874024,0.00017,2]
[398917945,1765992642689,-278.94,0.00017,2]
[398917946,1765992642701,-1190.90842251,0.00017,2]
[398917947,1765992642771,-303317.45380859,0.00017,2]
[398917949,1765992642782,-253031.56734752,0.00017,2]
[398917965,1765992645526,-409.86633055,0.00015186,2]
[398917966,1765992645536,-6089.02606945,0.00017,2]
[398917967,1765992645579,-880.08288909,0.00017,2]
[398917968,1765992645694,-44746.7004408,0.00017,2]
[398917972,1765992647123,-12077.75601694,0.00017,2]
[398917973,1765992647241,-453545.2681368,0.00017,2]
[398917974,1765992647256,-200688.24206977,0.00017,2]
[398917985,1765992774966,661.06,0.00015177,3]
[398917999,1765993175292,-174.426,0.00014883,2]
[398918000,1765993175316,-300.0,0.00014883,2]
[398918001,1765993175340,-2421.148,0.00014883,2]
[398918002,1765993175362,-300.0,0.00015004,2]
[398918003,1765993175385,-300.0,0.00015004,2]
[398918004,1765993175407,-300.0,0.00015004,2]
[398918005,1765993175431,-300.0,0.00015085,2]
[398918006,1765993175453,-500.0,0.00015086,2]
[398918007,1765993175479,-500.0,0.00015086,2]
[398918008,1765993175501,-500.0,0.00015086,2]
[398918009,1765993175525,-500.0,0.00015086,2]
[398918010,1765993175547,-500.0,0.00015086,2]
[398918011,1765993175571,-477.87072769,0.00015086,2]
[398918012,1765993175593,-500.0,0.00015086,2]
[398918013,1765993175616,-374.83988548,0.00015086,2]
[398918014,1765993175641,-500.0,0.00015086,2]
[398918015,1765993175666,-500.0,0.00015086,2]
[398918016,1765993175689,-360.0,0.00015086,2]
[398918017,1765993175711,-500.0,0.00015086,2]
[398918018,1765993175736,-500.0,0.00015086,2]
[398918019,1765993175760,-500.0,0.00015086,2]
[398918020,1765993175785,-500.0,0.00015086,2]
[398918021,1765993175819,-500.0,0.00015086,2]
[398918022,1765993175847,-500.0,0.00015086,2]
[398918023,1765993175869,-1200.0,0.00015086,2]
[398918024,1765993175892,-300.0,0.00015086,2]
[398918025,1765993175917,-33478.1891,0.00015087,2]
[398918026,1765993175940,-1000.0,0.00015087,2]
[398918027,1765993175962,-16113.52628683,0.00015087,2]
[398918066,1765993831614,-166.66,0.00013917,2]
[398918067,1765993831625,-300.0,0.00014063,2]
[398918079,1765993831634,-166.66,0.0001421,2]
[398918080,1765993832052,-162.0,0.00014256,2]
[398918081,1765993832062,-62.35190249,0.00014256,2]
[398918082,1765993832073,-1110.77786931,0.00014256,2]
[398918083,1765993832085,-26.8702282,0.00014256,2]
[398918084,1765993832094,-300.0,0.00014256,2]
[398918085,1765993832103,-42914.16044442,0.00014257,2]
[398918093,1765993838022,-363.9899998,0.00014257,2]
[398918094,1765993838034,-18827.66812267,0.00014257,2]
[398918095,1765993838050,-42733.22143311,0.00014257,2]
[398918096,1765993838060,-300.0,0.00014445,2]
[398918097,1765993838069,-300.0,0.00014445,2]
[398918098,1765993838078,-166.66,0.00014503,2]
[398918099,1765993838087,-166.66,0.00014796,2]
[398918100,1765993838096,-150.0,0.00014799,2]
[398918101,1765993838110,-1902.73,0.00014943,2]
[398918102,1765993838119,-461.78876285,0.00014986,2]
[398918103,1765993838129,-6767.79849042,0.00014986,2]
[398918104,1765993838138,-22996.1771,0.00015028,2]
[398918105,1765993838147,-760000.0,0.00015028,2]
[398918106,1765993838156,-300.0,0.00015086,2]
[398918107,1765993838166,-14238.8573,0.00015087,2]
[398918108,1765993838175,-1000.0,0.00015087,2]
[398918109,1765993838190,-2300.0,0.00015087,2]
[398918110,1765993838201,-166.66,0.00015089,2]
[398918111,1765993838211,-151.0,0.00015109,2]
[398918112,1765993838222,-9348.4,0.00015111,2]
[398918113,1765993838231,-2307.723,0.00015125,2]
[398918114,1765993838241,-6330.32835363,0.00015128,2]
[398918115,1765993838251,-150.0,0.00015149,2]
[398918116,1765993838260,-200.0,0.00015177,2]
[398918117,1765993838269,-500.0,0.00015177,2]
[398918118,1765993838278,-200.0,0.00015177,2]
[398918119,1765993838288,-151.0,0.00015177,2]
[398918120,1765993838297,-200.0,0.00015177,2]
[398918121,1765993838307,-500.0,0.00015177,2]
[398918122,1765993838317,-151.0,0.00015177,2]
[398918123,1765993838326,-151.0,0.00015177,2]
[398918124,1765993838335,-151.0,0.00015177,2]
[398918125,1765993838345,-151.0,0.00015177,2]
[398918126,1765993838354,-151.0,0.00015177,2]
[398918127,1765993838364,-151.0,0.00015177,2]
[398918128,1765993838374,-151.0,0.00015177,2]
[398918129,1765993838383,-500.0,0.00015177,2]
[398918130,1765993838393,-151.0,0.00015177,2]
[398918131,1765993838402,-151.0,0.00015177,2]
[398918132,1765993838411,-151.0,0.00015177,2]
[398918133,1765993838421,-151.0,0.00015177,2]
[398918134,1765993838431,-151.0,0.00015177,2]
[398918135,1765993838440,-151.0,0.00015177,2]
[398918136,1765993838452,-263.68804317,0.00015177,2]
[398918137,1765993838462,-500.0,0.00015186,2]
[398918138,1765993838472,-500.0,0.00015186,2]
[398918139,1765993838482,-228.19281027,0.00015186,2]
[398918140,1765993838492,-500.0,0.00015186,2]
[398918141,1765993838502,-500.0,0.00015186,2]
[398918142,1765993838512,-500.0,0.00015186,2]
[398918143,1765993838522,-500.0,0.00015186,2]
[398918144,1765993838532,-500.0,0.00015186,2]
[398918145,1765993838541,-468.57497061,0.00015186,2]
[398918146,1765993838551,-500.0,0.00015186,2]
[398918147,1765993838566,-500.0,0.00015186,2]
[398918148,1765993838575,-500.0,0.00015186,2]
[398918149,1765993838586,-500.0,0.00015186,2]
[398918150,1765993838595,-500.0,0.00015186,2]
[398918151,1765993838605,-500.0,0.00015186,2]
[398918152,1765993838615,-504.60053044,0.00015186,2]
[398918153,1765993838624,-500.0,0.00015186,2]
[398918154,1765993838634,-500.0,0.00015186,2]
[398918155,1765993838644,-500.0,0.00015186,2]
[398918156,1765993838654,-500.0,0.00015186,2]
[398918157,1765993838664,-392.85536899,0.00015186,2]
[398918158,1765993838673,-500.0,0.00015186,2]
[398918159,1765993838683,-500.0,0.00015186,2]
[398918160,1765993838692,-439.66160945,0.00015186,2]
[398918161,1765993839261,-500.0,0.00015186,2]
[398918162,1765993839290,-500.0,0.00015186,2]
[398918163,1765993839299,-500.0,0.00015186,2]
[398918164,1765993839310,-500.0,0.00015186,2]
[398918165,1765993839319,-500.0,0.00015186,2]
[398918166,1765993839329,-500.0,0.00015186,2]
[398918167,1765993839339,-500.0,0.00015186,2]
[398918168,1765993839348,-500.0,0.00015186,2]
[398918169,1765993839358,-500.0,0.00015186,2]
[398918170,1765993839368,-500.0,0.00015186,2]
[398918171,1765993839377,-500.0,0.00015186,2]
[398918172,1765993839386,-500.0,0.00015186,2]
[398918173,1765993839396,-1000.0,0.00015186,2]
[398918174,1765993839406,-1000.0,0.00015186,2]
[398918175,1765993839415,-1000.0,0.00015186,2]
[398918176,1765993839425,-1000.0,0.00015186,2]
[398918177,1765993839435,-1000.0,0.00015186,2]
[398918178,1765993839445,-1000.0,0.00015186,2]
[398918179,1765993839454,-1000.0,0.00015186,2]
[398918180,1765993839464,-1000.0,0.00015186,2]
[398918181,1765993839473,-1000.0,0.00015186,2]
[398918182,1765993839483,-1000.0,0.00015186,2]
[398918183,1765993839493,-225.73772161,0.00015186,2]
[398918184,1765993839503,-788.91,0.00015186,2]
[398918185,1765993839514,-6767.7984904,0.00015199,2]
[398918186,1765993839523,-59100.83,0.00015228,2]
[398918187,1765993839533,-500.0,0.00015286,2]
[398918188,1765993839543,-500.0,0.00015286,2]
[398918189,1765993839553,-499.99999999,0.00015286,2]
[398918190,1765993839562,-500.0,0.00015286,2]
[398918191,1765993839572,-500.0,0.00015286,2]
[398918192,1765993839582,-500.0,0.00015286,2]
[398918193,1765993839593,-500.0,0.00015286,2]
[398918194,1765993839603,-500.0,0.00015286,2]
[398918195,1765993839612,-500.0,0.00015286,2]
[398918196,1765993839622,-500.0,0.00015286,2]
[398918197,1765993839631,-500.0,0.00015286,2]
[398918198,1765993839641,-558.32,0.00015286,2]
[398918199,1765993839650,-500.0,0.00015286,2]
[398918200,1765993839660,-520.67260897,0.00015286,2]
[398918201,1765993839669,-500.0,0.00015286,2]
[398918202,1765993839679,-615.3449817,0.00015286,2]
[398918203,1765993839688,-500.0,0.00015286,2]
[398918204,1765993839698,-500.0,0.00015286,2]
[398918205,1765993839707,-150.0,0.00015288,2]
[398918206,1765993839717,-150.0,0.00015288,2]
[398918207,1765993839727,-150.0,0.00015288,2]
[398918208,1765993839736,-150.0,0.00015288,2]
[398918209,1765993839746,-150.0,0.00015288,2]
[398918210,1765993839755,-150.0,0.00015288,2]
[398918211,1765993839764,-150.65844906,0.00015288,2]
[398918212,1765993839773,-151.0803606,0.00015288,2]
[398918213,1765993839783,-150.91550183,0.00015288,2]
[398918214,1765993839792,-150.0,0.00015288,2]
[398918215,1765993839802,-150.0,0.00015288,2]
[398918216,1765993839811,-150.0,0.00015288,2]
[398918217,1765993839820,-150.0,0.00015288,2]
[398918218,1765993839829,-150.0,0.00015288,2]
[398918219,1765993839839,-300.0,0.00015308,2]
[398918220,1765993839848,-300.0,0.00015308,2]
[398918221,1765993839857,-6330.32835355,0.00015325,2]
[398918222,1765993839867,-199.97,0.00015356,2]
[398918223,1765993839877,-166.66,0.00015382,2]
[398918224,1765993839887,-6767.7984904,0.00015411,2]
[398918225,1765993839896,-150.0,0.00015418,2]
[398918226,1765993839905,-150.0,0.00015458,2]
[398918227,1765993839915,-788.91,0.0001546,2]
[398918228,1765993839925,-6330.32835355,0.00015522,2]
[398918229,1765993839935,-163.37,0.00015523,3]
[398918230,1765993839949,-209.84762225,0.00015527,2]
[398918231,1765993839959,-150.0,0.00015549,2]
[398918232,1765993839968,-150.0,0.00015571,2]
[398918233,1765993839978,-150.0,0.00015571,2]
[398918234,1765993839989,-150.0,0.00015571,2]
[398918235,1765993839998,-150.0,0.00015571,2]
[398918236,1765993840008,-699.50996775,0.00015574,2]
[398918237,1765993840018,-583.91324744,0.00015583,2]
[398918238,1765993840028,-275.4465995,0.00015583,2]
[398918239,1765993840038,-189214.28120893,0.00015584,2]
[398918240,1765993840047,-420.0,0.00015614,2]
[398918242,1765993840056,-150.0,0.00015627,2]
[398918244,1765993840065,-150.0,0.0001568,2]
[398918245,1765993840075,-1680.0,0.00015682,2]
[398918246,1765993840084,-150.0,0.00015712,2]
[398918247,1765993840094,-6330.32835355,0.00015719,2]
[398918248,1765993840103,-200.0,0.00015725,2]
[398918250,1765993840113,-500.0,0.00015725,2]
[398918252,1765993840123,-788.91,0.00015734,2]
[398918254,1765993840132,-150.0,0.00015797,2]
[398918256,1765993840141,-150.0,0.0001581,2]
[398918258,1765993840151,-150.0,0.00015854,2]
[398918260,1765993840159,-150.0,0.00015854,2]
[398918262,1765993840169,-150.0,0.00015854,2]
[398918264,1765993840178,-150.0,0.00015854,2]
[398918266,1765993840187,-6330.32835355,0.00015916,2]
[398918268,1765993840197,-150.0,0.00015941,2]
[398918270,1765993840206,-150.0,0.00015967,2]
[398918272,1765993840215,-500.0,0.00015999,2]
[398918274,1765993840225,-788.91,0.00016008,2]
[398918276,1765993840235,-246.09113168,0.00016037,2]
[398918278,1765993840244,-150.0,0.00016072,2]
[398918280,1765993840254,-6330.32835355,0.00016112,2]
[398918282,1765993840263,-29204.14,0.00016116,2]
[398918284,1765993840273,-999.99,0.00016116,2]
[398918286,1765993840282,-9999.99,0.00016116,2]
[398918288,1765993840292,-9999.99,0.00016116,2]
[398918290,1765993840302,-28284.86,0.00016116,2]
[398918292,1765993840311,-9999.99,0.00016116,2]
[398918294,1765993840320,-3822.44,0.00016116,2]
[398918296,1765993840330,-404.9,0.00016116,2]
[398918298,1765993840339,-150.99,0.00016116,2]
[398918300,1765993840348,-1530.11,0.00016116,2]
[398918301,1765993840358,-2127.31,0.00016116,2]
[398918302,1765993840367,-427.63,0.00016116,2]
[398918303,1765993840376,-28635.52,0.00016116,2]
[398918304,1765993840386,-510.31,0.00016116,2]
[398918305,1765993840395,-9999.99,0.00016116,2]
[398918306,1765993840405,-150.99,0.00016116,2]
[398918307,1765993840415,-23607.62,0.00016116,2]
[398918308,1765993840424,-150.0,0.00016137,2]
[398918309,1765993840434,-150.0,0.00016137,2]
[398918310,1765993840443,-150.0,0.00016137,2]
[398918311,1765993840455,-150.0,0.00016137,2]
[398918312,1765993840464,-150.0,0.00016137,2]
[398918313,1765993840473,-150.0,0.00016137,2]
[398918314,1765993840483,-150.0,0.00016137,2]
[398918315,1765993840493,-150.0,0.00016137,2]
[398918316,1765993840503,-2713.84543249,0.00016188,2]
[398918317,1765993840512,-150.0,0.00016202,2]
[398918318,1765993840522,-510.0,0.00016217,2]
[398918319,1765993840531,-200.0,0.00016273,2]
[398918320,1765993840540,-788.91,0.00016282,2]
[398918321,1765993840550,-150.0,0.00016307,2]
[398918322,1765993840559,-6330.32835355,0.00016309,2]
[398918323,1765993840568,-150.0,0.00016333,2]
[398918324,1765993840577,-2732.32100888,0.00016366,2]
[398918325,1765993840588,-461.7887628,0.00016373,2]
[398918326,1765993840597,-150.0,0.0001642,2]
[398918327,1765993840607,-150.0,0.0001642,2]
[398918328,1765993840616,-150.0,0.0001642,2]
[398918329,1765993840625,-150.0,0.0001642,2]